bitfinex-derivatives/quotes_BTCF0:USTF0_20250320
["timestamp","ask_amount","ask_price","bid_price","bid_amount"]
[1742454708606,0.3753304,85965.0,85939.0,0.17536]
[1742454708806,0.0646,85962.0,85961.0,0.1163294]
[1742454709006,0.68708635,85967.0,85966.0,0.1163227]
[1742454709201,0.68624635,85967.0,85966.0,0.1163227]
[1742454709718,0.68624635,85967.0,85966.0,0.12888124]
[1742454711822,0.68624635,85967.0,85966.0,0.23134162]
[1742454712426,0.68624635,85967.0,85966.0,0.19844162]
[1742454712623,0.27794635,85967.0,85966.0,0.19844162]
[1742454713127,0.1163208,85968.0,85967.0,0.1163213]
[1742454713523,0.1777208,85968.0,85967.0,0.1487213]
[1742454715034,0.0614,85968.0,85967.0,0.1487213]
[1742454716326,0.17772,85968.0,85967.0,0.1487213]
[1742454716634,0.0614,85968.0,85967.0,0.1487213]
[1742454717240,0.0614,85968.0,85967.0,0.1811213]
[1742454718732,0.17772,85968.0,85967.0,0.1811213]
[1742454720135,0.17772,85968.0,85967.0,0.1487213]
[1742454720536,0.17772,85968.0,85967.0,0.1791213]
[1742454720736,0.18756021,85968.0,85967.0,0.1791213]
[1742454720936,0.1163213,85967.0,85966.0,0.02121892]
[1742454721135,0.1163267,85964.0,85962.0,0.033]
[1742454721336,0.1163349,85957.0,85956.0,0.058168]
[1742454721542,0.12617511,85957.0,85956.0,0.2908312]
[1742454721742,0.15447511,85957.0,85956.0,0.29941753]
[1742454721932,0.12617511,85957.0,85956.0,0.31185778]
[1742454722243,0.13580391,85957.0,85956.0,0.31185778]
[1742454722626,0.19693603,85957.0,85956.0,0.31185778]
[1742454726635,0.19693603,85957.0,85956.0,0.19552528]
[1742454726842,0.19690828,85957.0,85956.0,0.19552528]
[1742454732046,0.22870828,85957.0,85956.0,0.01244025]
[1742454732252,0.1163389,85954.0,85953.0,0.00017453]
[1742454732449,0.1163389,85954.0,85953.0,0.12924963]
[1742454732450,0.12606631,85954.0,85953.0,0.12924963]
[1742454732654,0.00954597,85954.0,85953.0,0.11651483]
[1742454732953,0.07207784,85989.0,85988.0,0.1162929]
[1742454733153,0.07207784,85989.0,85988.0,0.3608]
[1742454733358,0.18836944,85989.0,85988.0,0.5907729]
[1742454733655,0.18836944,85989.0,85988.0,0.48945967]
[1742454733848,0.07207784,85989.0,85988.0,0.48945967]
[1742454735862,0.48037784,85989.0,85981.0,0.3608]
[1742454736159,0.1163024,85981.0,85980.0,0.00017453]
[1742454736364,0.2300624,85981.0,85980.0,0.00017453]
[1742454737768,0.3300624,85981.0,85980.0,0.00017453]
[1742454738160,0.2300624,85981.0,85980.0,0.00017453]
[1742454738365,0.3300624,85981.0,85980.0,0.00017453]
[1742454738667,0.3300624,85981.0,85980.0,0.11647823]
[1742454739070,0.7383624,85981.0,85980.0,0.11647823]
[1742454739871,0.7383624,85981.0,85980.0,0.00017453]
[1742454742159,0.98286,85981.0,85957.0,0.0581673]
[1742454742362,0.1163335,85958.0,85957.0,0.1480341]
[1742454742660,0.1163299,85961.0,85960.0,0.1163294]
[1742454742865,0.1163299,85961.0,85960.0,0.1485294]
[1742454743370,0.1463299,85961.0,85960.0,0.1485294]
[1742454743572,0.1764299,85961.0,85960.0,0.1785294]
[1742454747258,0.0601,85961.0,85960.0,0.1785294]
[1742454748273,0.1764294,85961.0,85960.0,0.1785294]
[1742454750577,0.1764294,85961.0,85960.0,0.1795294]
[1742454751369,0.1764294,85961.0,85960.0,0.1785294]
[1742454751570,0.1764294,85961.0,85960.0,0.1795294]
[1742454751773,0.18595346,85961.0,85960.0,0.1795294]
[1742454752978,0.06962406,85961.0,85960.0,0.1795294]
[1742454753770,0.18595346,85961.0,85960.0,0.1795294]
[1742454754571,0.1764294,85961.0,85960.0,0.1795294]
[1742454754778,0.1764294,85961.0,85960.0,0.1785294]
[1742454755081,0.1764294,85961.0,85960.0,0.1795294]
[1742454755281,0.0581634,85963.0,85962.0,0.1163281]
[1742454757169,0.0905634,85963.0,85962.0,0.1163281]
[1742454759484,0.1216634,85963.0,85962.0,0.1791281]
[1742454760777,0.2216634,85963.0,85962.0,0.1791281]
[1742454760985,0.1163308,85960.0,85959.0,0.0331]
[1742454761276,0.1163308,85960.0,85959.0,0.0301]
[1742454761277,0.1481308,85960.0,85959.0,0.0301]
[1742454761474,0.1481308,85960.0,85957.0,0.0581668]
[1742454761475,0.1481335,85958.0,85957.0,0.0581668]
[1742454761779,0.1163335,85958.0,85957.0,0.0882668]
[1742454761983,0.2134335,85958.0,85957.0,0.1213668]
[1742454762584,0.2134335,85958.0,85957.0,0.13426505]
[1742454764685,0.2134335,85958.0,85957.0,0.13526505]
[1742454765491,0.2134335,85958.0,85957.0,0.13426505]
[1742454765677,0.2134335,85958.0,85957.0,0.13526505]
[1742454767878,0.3134335,85958.0,85957.0,0.13526505]
[1742454768593,0.2134335,85958.0,85957.0,0.13526505]
[1742454771779,0.2452335,85958.0,85957.0,0.04399825]
[1742454772185,0.2452335,85958.0,85957.0,0.16033315]
[1742454773288,0.2134335,85958.0,85957.0,0.16033315]
[1742454774391,0.2134335,85958.0,85957.0,0.19073315]
[1742454775494,0.2134335,85958.0,85957.0,0.18973315]
[1742454775696,0.2134335,85958.0,85957.0,0.19073315]
[1742454776489,0.2134335,85958.0,85957.0,0.55153315]
[1742454777990,0.2134335,85958.0,85957.0,0.58173315]
[1742454778191,0.2134335,85958.0,85957.0,0.58273315]
[1742454780392,0.0642,85958.0,85957.0,0.58273315]
[1742454780903,0.1805335,85958.0,85957.0,0.58173315]
[1742454781202,0.1805335,85958.0,85957.0,0.58273315]
[1742454782798,0.0642,85958.0,85957.0,0.58273315]
[1742454783995,0.1805335,85958.0,85957.0,0.58273315]
[1742454784198,0.0642,85958.0,85957.0,0.58273315]
[1742454784506,0.1805335,85958.0,85957.0,0.58273315]
[1742454784799,0.1494335,85958.0,85957.0,0.58273315]
[1742454785900,0.1812335,85958.0,85957.0,0.58273315]
[1742454789216,0.0649,85958.0,85957.0,0.58273315]
[1742454789716,0.1812335,85958.0,85957.0,0.58273315]
[1742454790113,0.0649,85958.0,85957.0,0.58273315]
[1742454790417,0.1812335,85958.0,85957.0,0.58273315]
[1742454790614,0.1494335,85958.0,85957.0,0.58273315]
[1742454790806,0.0331,85958.0,85957.0,0.58273315]
[1742454791210,4e-05,85959.0,85958.0,0.1163335]
[1742454791411,4e-05,85959.0,85958.0,0.1787335]
[1742454791810,0.0302,85959.0,85958.0,0.1787335]
[1742454793012,0.1465322,85959.0,85958.0,0.1787335]
[1742454793415,0.1777322,85959.0,85958.0,0.1787335]
[1742454793714,0.0614,85959.0,85958.0,0.1787335]
[1742454793914,0.0614,85959.0,85958.0,0.1797335]
[1742454795314,0.0614,85959.0,85958.0,0.5405335]
[1742454795509,0.0921,85959.0,85958.0,0.5405335]
[1742454797126,0.0614,85959.0,85958.0,0.5405335]
[1742454798523,0.0614,85959.0,85958.0,0.5395335]
[1742454798713,0.0614,85959.0,85958.0,0.5405335]
[1742454800317,0.1777322,85959.0,85958.0,0.5405335]
[1742454801214,0.1777322,85959.0,85958.0,0.5395335]
[1742454801410,0.1777322,85959.0,85958.0,0.5405335]
[1742454803112,0.0614,85959.0,85958.0,0.5395335]
[1742454803318,0.0614,85959.0,85958.0,0.5405335]
[1742454808923,0.1777322,85959.0,85958.0,0.5405335]
[1742454809326,0.0614,85959.0,85958.0,0.5405335]
[1742454809531,0.0614,85959.0,85958.0,0.5395335]
[1742454809733,0.0614,85959.0,85958.0,0.5405335]
[1742454810032,0.0614,85959.0,85958.0,2.0405335]
[1742454812127,0.0614,85959.0,85958.0,0.5405335]
[1742454814032,0.1777322,85959.0,85958.0,0.5405335]
[1742454815523,0.1777322,85959.0,85958.0,2.0405335]
[1742454819333,0.0614,85959.0,85958.0,2.0405335]
[1742454819535,0.0614,85959.0,85958.0,1.9781335]
[1742454819536,0.1777322,85959.0,85958.0,1.9781335]
[1742454820339,0.0614,85959.0,85958.0,1.9781335]
[1742454820539,0.0614,85959.0,85958.0,2.0430335]
[1742454836747,0.0614,85959.0,85958.0,2.1555935]
[1742454841549,0.0614,85959.0,85958.0,2.36488876]
[1742454845263,0.0614,85959.0,85958.0,2.1555935]
[1742454846065,4e-05,85960.0,85959.0,0.1163322]
[1742454846263,0.00017381,85969.0,85968.0,0.11632]
[1742454846563,0.00017381,85969.0,85968.0,0.58948]
[1742454846863,0.00017381,85969.0,85968.0,2.08948]
[1742454847360,0.00017381,85969.0,85968.0,2.15378]
[1742454847560,0.00017381,85969.0,85968.0,0.65378]
[1742454848458,0.00017381,85969.0,85968.0,0.65478]
[1742454857496,0.4664475,85987.0,85974.0,0.0581559]
[1742454857688,0.0883501,85983.0,85979.0,0.4771051]
[1742454858386,0.0581512,85981.0,85980.0,0.1744522]
[1742454858790,0.0581512,85981.0,85980.0,0.2398522]
[1742454858984,0.0328,85982.0,85981.0,0.1163024]
[1742454859185,0.0328,85982.0,85981.0,0.1817024]
[1742454859381,0.0328,85982.0,85981.0,0.30890306]
[1742454860182,0.4083,85987.0,85983.0,0.0581495]
[1742454860377,4e-05,85996.0,85989.0,0.0581453]
[1742454860579,0.0649,85995.0,85994.0,0.1162848]
[1742454860785,0.0954,85995.0,85994.0,0.4770848]
[1742454860977,0.0954,85995.0,85994.0,0.8378848]
[1742454861178,0.0954,85995.0,85994.0,0.9019848]
[1742454861983,0.03417066,86000.0,85999.0,0.116278]
[1742454862992,0.03417066,86000.0,85999.0,0.181478]
[1742454864787,0.03417066,86000.0,85999.0,0.19025131]
[1742454865390,0.03417066,86000.0,85999.0,0.30257131]
[1742454871690,0.03417066,86000.0,85999.0,0.19025131]
[1742454871898,0.15044736,86000.0,85999.0,0.30237131]
[1742454872402,0.24184736,86000.0,85999.0,0.30237131]
[1742454872798,0.12557066,86000.0,85999.0,0.30237131]
[1742454873108,0.24184736,86000.0,85999.0,0.30237131]
[1742454874198,0.12557066,86000.0,85999.0,0.30237131]
[1742454874401,0.24184736,86000.0,85999.0,0.30237131]
[1742454874600,0.24184736,86000.0,85999.0,0.19025131]
[1742454874805,0.24184736,86000.0,85999.0,0.30237131]
[1742454875297,0.09477066,86000.0,85999.0,0.30237131]
[1742454875900,0.09477066,86000.0,85999.0,0.19025131]
[1742454876198,0.09477066,86000.0,85999.0,0.30237131]
[1742454880102,0.12557066,86000.0,85999.0,0.30237131]
[1742454881103,0.09477066,86000.0,85999.0,0.30237131]
[1742454881298,0.21104736,86000.0,85999.0,0.30237131]
[1742454881609,0.12557066,86000.0,85999.0,0.30237131]
[1742454882499,0.09477066,86000.0,85999.0,0.30237131]
[1742454883897,0.04477066,86000.0,85999.0,0.30237131]
[1742454884708,0.07557066,86000.0,85999.0,0.30237131]
[1742454886703,0.04477066,86000.0,85999.0,0.30237131]
[1742454887213,0.04477066,86000.0,85999.0,1.02397131]
[1742454887404,0.04477066,86000.0,85999.0,2.52397131]
[1742454887600,4e-05,86001.0,86000.0,0.1162767]
[1742454887806,0.0614,86008.0,86006.0,0.0581342]
[1742454888106,0.0614,86008.0,86007.0,0.5405672]
[1742454890412,0.0301,86008.0,86007.0,0.55559734]
[1742454893422,4e-05,86009.0,86008.0,0.1162659]
[1742454893617,4e-05,86009.0,86008.0,0.1783659]
[1742454893813,4e-05,86009.0,86008.0,0.2106659]
[1742454895912,4e-05,86009.0,86008.0,0.1783659]
[1742454898013,0.06204,86009.0,86008.0,0.1783659]
[1742454898213,0.1783045,86009.0,86008.0,0.1783659]
[1742454898608,0.1783045,86009.0,86007.0,0.49289734]
[1742454898609,0.2162659,86008.0,86007.0,0.49289734]
[1742454898810,0.1783045,86009.0,86007.0,0.52259734]
[1742454898811,0.1783058,86009.0,86007.0,0.52259734]
[1742454899013,0.1475659,86008.0,86007.0,0.52259734]
[1742454900026,0.1475659,86008.0,86007.0,0.55419734]
[1742454900027,0.1776659,86008.0,86007.0,0.55419734]
[1742454903016,0.0614,86008.0,86007.0,0.55419734]
[1742454904916,4e-05,86009.0,86008.0,0.1162659]
[1742454905122,4e-05,86009.0,86008.0,0.1813659]
[1742454905529,4e-05,86009.0,86008.0,1.6813659]
[1742454906330,0.1163045,86009.0,86008.0,1.6813659]
[1742454906831,4e-05,86009.0,86008.0,1.6813659]
[1742454907125,4e-05,86009.0,86008.0,0.1813659]
[1742454907330,0.0900302,86012.0,86008.0,0.1813659]
[1742454907331,0.1481618,86012.0,86011.0,0.1162618]
[1742454907722,0.1481618,86012.0,86011.0,0.1786618]
[1742454908124,0.1162618,86012.0,86011.0,0.1786618]
[1742454908321,0.1785618,86012.0,86011.0,0.1786618]
[1742454908523,0.1162618,86012.0,86011.0,0.1786618]
[1742454909124,0.1468618,86012.0,86011.0,0.1786618]
[1742454909634,0.1772618,86012.0,86011.0,0.1786618]
[1742454913129,0.1772618,86012.0,86011.0,0.5394618]
[1742454919340,0.1772618,86012.0,86011.0,0.4232]
[1742454919736,0.2772618,86012.0,86011.0,0.4232]
[1742454920242,0.2772618,86012.0,86011.0,0.5394618]
[1742454920630,0.2772618,86012.0,86011.0,0.4232]
[1742454921428,0.2772618,86012.0,86011.0,0.5394618]
[1742454921644,0.2772618,86012.0,86011.0,0.4232]
[1742454921838,0.28677844,86012.0,86011.0,0.4232]
[1742454922041,0.21507844,86012.0,86011.0,0.4232]
[1742454922339,0.1162645,86009.0,86008.0,0.0619]
[1742454922545,0.1162672,86007.0,86006.0,0.0143939]
[1742454922744,0.1162726,86003.0,86002.0,0.0638]
[1742454923044,0.1162726,86003.0,86002.0,0.180074]
[1742454923339,0.1784726,86003.0,86002.0,0.180074]
[1742454923639,0.1784726,86003.0,86002.0,0.07828231]
[1742454923842,0.18798924,86003.0,86002.0,0.07828231]
[1742454924051,0.18798924,86003.0,86002.0,0.19455631]
[1742454924554,0.18798924,86003.0,86002.0,0.07828231]
[1742454925246,0.28798924,86003.0,86002.0,0.07828231]
[1742454925646,0.18798924,86003.0,86002.0,0.07828231]
[1742454926753,0.21628924,86003.0,86002.0,0.07828231]
[1742454927743,0.28798924,86003.0,86002.0,0.07828231]
[1742454928148,0.28798924,86003.0,85991.0,0.11645963]
[1742454928149,0.1162875,85992.0,85991.0,0.11645963]
[1742454928544,0.1162875,85992.0,85991.0,0.00904173]
[1742454928749,0.1162875,85992.0,85991.0,0.13930804]
[1742454929156,0.18690414,85992.0,85991.0,0.13930804]
[1742454931763,0.18690414,85992.0,85991.0,0.20380804]
[1742454931964,0.18690414,85992.0,85991.0,0.08751914]
[1742454932765,0.18690414,85992.0,85991.0,0.20380804]
[1742454933555,0.18690414,85992.0,85991.0,0.08751914]
[1742454933957,0.18690414,85992.0,85991.0,0.20380804]
[1742454936177,0.1773875,85992.0,85991.0,0.20380804]
[1742454940472,0.1773875,85992.0,85991.0,0.23400804]
[1742454941465,0.1773875,85992.0,85991.0,0.11771914]
[1742454941664,0.1773875,85992.0,85991.0,0.08751914]
[1742454942268,0.1773875,85992.0,85991.0,0.20380804]
[1742454942566,0.1773875,85992.0,85991.0,0.08751914]
[1742454943170,0.1773875,85992.0,85991.0,0.20380804]
[1742454943373,0.1773875,85992.0,85991.0,0.23430804]
[1742454944269,0.1773875,85992.0,85991.0,0.11801914]
[1742454944570,0.1773875,85992.0,85991.0,0.23430804]
[1742454944969,0.1773875,85992.0,85991.0,0.08751914]
[1742454947171,0.1773875,85992.0,85991.0,0.20380804]
[1742454947475,0.1773875,85992.0,85991.0,0.08751914]
[1742454947877,0.1773875,85992.0,85991.0,0.20380804]
[1742454950200,0.1773875,85992.0,85991.0,0.08751914]
[1742454951267,0.2773875,85992.0,85991.0,0.08751914]
[1742454952777,0.1773875,85992.0,85991.0,0.08751914]
[1742454953081,0.6856875,85992.0,85991.0,0.06467443]
[1742454953377,0.6856875,85992.0,85975.0,0.2865775]
[1742454953378,0.1163092,85976.0,85975.0,0.2865775]
[1742454953583,0.1163092,85976.0,85975.0,1.8195775]
[1742454954080,0.1163092,85976.0,85975.0,1.7074575]
[1742454954276,0.1163092,85976.0,85975.0,0.2074575]
[1742454955175,0.1163092,85976.0,85975.0,0.04162912]
[1742454955377,0.1446092,85976.0,85975.0,0.04362912]
[1742454955571,0.1820092,85976.0,85975.0,0.17346853]
[1742454956083,0.1820092,85976.0,85975.0,0.05715803]
[1742454956284,0.1820092,85976.0,85975.0,0.17346853]
[1742454956483,0.1820092,85976.0,85975.0,0.23786853]
[1742454960886,0.1494092,85976.0,85975.0,0.23786853]
[1742454961880,0.1801092,85976.0,85975.0,0.12155803]
[1742454963886,0.1801092,85976.0,85975.0,0.08855803]
[1742454964888,0.1801092,85976.0,85975.0,0.20486853]
[1742454966080,0.1801092,85976.0,85975.0,0.08855803]
[1742454966281,0.1801092,85976.0,85975.0,0.20486853]
[1742454966481,0.1801092,85976.0,85975.0,0.08855803]
[1742454966684,0.1801092,85976.0,85975.0,0.20486853]
[1742454970296,0.1801092,85976.0,85975.0,0.08855803]
[1742454970998,0.1801092,85976.0,85975.0,0.20486853]
[1742454971295,0.1801092,85976.0,85975.0,0.08855803]
[1742454972000,0.2801092,85976.0,85975.0,0.08855803]
[1742454976489,0.2801092,85976.0,85975.0,0.20486853]
[1742454976893,0.2801092,85976.0,85975.0,0.23756853]
[1742454977590,0.1801092,85976.0,85975.0,0.23756853]
[1742454977900,0.1163092,85976.0,85975.0,0.23756853]
[1742454979192,0.1763092,85976.0,85975.0,0.23756853]
[1742454982092,0.1763092,85976.0,85975.0,0.12125803]
[1742454984202,0.1763092,85976.0,85975.0,0.23756853]
[1742454984593,0.1763092,85976.0,85975.0,0.12125803]
[1742454985105,0.1763092,85976.0,85975.0,0.23756853]
[1742454985605,0.1763092,85976.0,85975.0,0.12125803]
[1742454985809,0.1763092,85976.0,85975.0,0.23756853]
[1742454987608,0.1763092,85976.0,85975.0,0.12125803]
[1742454987907,0.1763092,85976.0,85975.0,0.23756853]
[1742454991301,0.1763092,85976.0,85975.0,0.12125803]
[1742454991498,0.1763092,85976.0,85975.0,0.23756853]
[1742454993414,0.1763092,85976.0,85975.0,0.20486853]
[1742454996326,0.1763092,85976.0,85975.0,0.08855803]
[1742454996528,0.1763092,85976.0,85975.0,0.20486853]
[1742454997717,0.2763092,85976.0,85975.0,0.08855803]
[1742454998023,0.15872,85968.0,85967.0,0.00017443]
[1742454998217,0.15872,85968.0,85967.0,0.03157443]
[1742454998424,0.22232,85968.0,85967.0,0.03157443]
[1742454998727,0.22232,85968.0,85967.0,0.04047987]
[1742454998926,0.17992,85968.0,85967.0,0.15680117]
[1742454999329,0.21252,85968.0,85967.0,0.19120117]
[1742454999824,0.21252,85968.0,85967.0,0.2051803]
[1742455000232,0.21252,85968.0,85967.0,0.2071803]
[1742455000627,0.21252,85968.0,85967.0,0.090859]
[1742455000826,0.21252,85968.0,85967.0,0.2071803]
[1742455001530,0.21252,85968.0,85967.0,0.090859]
[1742455001720,0.21252,85968.0,85967.0,0.2071803]
[1742455002124,0.21252,85968.0,85967.0,0.090859]
[1742455002526,0.31252,85968.0,85967.0,0.090859]
[1742455002832,0.31252,85968.0,85967.0,0.060459]
[1742455003033,0.31252,85968.0,85967.0,0.029059]
[1742455003235,0.72082,85968.0,85967.0,0.029059]
[1742455003830,0.62082,85968.0,85967.0,0.1453803]
[1742455004232,0.0581644,85965.0,85964.0,0.0581623]
[1742455004538,0.174496,85965.0,85964.0,0.1744836]
[1742455005435,0.174496,85965.0,85964.0,0.0631623]
[1742455005641,0.236296,85965.0,85964.0,0.0631623]
[1742455006025,0.236296,85965.0,85964.0,0.005]
[1742455007040,0.236296,85965.0,85964.0,0.0185782]
[1742455007240,0.236296,85965.0,85964.0,0.008]
[1742455008143,0.236296,85965.0,85964.0,0.0218132]
[1742455010846,0.597096,85965.0,85964.0,0.0218132]
[1742455011141,0.1163308,85960.0,85957.0,0.0581667]
[1742455011342,0.1744968,85960.0,85959.0,0.1163322]
[1742455011737,0.1744968,85960.0,85959.0,0.1483322]
[1742455013045,0.0581643,85962.0,85961.0,0.1163294]
[1742455013347,0.2284473,85963.0,85962.0,0.1163281]
[1742455013543,0.2284473,85963.0,85962.0,0.1489281]
[1742455013738,0.23794409,85963.0,85962.0,0.1489281]
[1742455014652,0.23794409,85963.0,85962.0,0.1529281]
[1742455017948,0.2284473,85963.0,85962.0,0.1529281]
[1742455019239,0.11212,85963.0,85962.0,0.1529281]
[1742455019446,0.2284467,85963.0,85962.0,0.1529281]
[1742455022056,4e-05,85964.0,85963.0,0.1163267]
[1742455022357,0.3608,85983.0,85969.0,0.1163186]
[1742455022358,0.1163582,85970.0,85969.0,0.1163186]
[1742455022758,0.1163182,85970.0,85969.0,0.1163186]
[1742455023057,0.1163182,85970.0,85969.0,1.6466186]
[1742455023258,4e-05,85971.0,85970.0,0.1163173]
[1742455023663,4e-05,85971.0,85970.0,0.1484173]
[1742455024253,0.1163559,85971.0,85970.0,0.1484173]
[1742455024458,0.1163559,85971.0,85970.0,0.1816173]
[1742455024755,0.1163559,85971.0,85970.0,0.1836173]
[1742455025053,0.1163559,85971.0,85970.0,1.6836173]
[1742455025260,0.1163559,85971.0,85970.0,1.6866173]
[1742455025754,0.1163559,85971.0,85970.0,0.1866173]
[1742455028358,4e-05,85971.0,85970.0,0.1866173]
[1742455028858,0.1163559,85971.0,85970.0,0.1866173]
[1742455029350,0.1163159,85971.0,85970.0,0.1866173]
[1742455030552,0.03034,85972.0,85971.0,0.1163159]
[1742455030751,0.1466546,85972.0,85971.0,0.1792159]
[1742455030951,0.03034,85972.0,85971.0,0.1792159]
[1742455031663,0.1795546,85972.0,85971.0,0.1792159]
[1742455031855,0.1795546,85972.0,85971.0,0.1822159]
[1742455032162,0.06324,85972.0,85971.0,0.1822159]
[1742455032363,0.06324,85972.0,85971.0,0.1842159]
[1742455032759,0.0632,85972.0,85971.0,0.1842159]
[1742455035960,4e-05,85973.0,85972.0,0.1163146]
[1742455036164,4e-05,85973.0,85972.0,0.1784146]
[1742455036673,4e-05,85973.0,85972.0,1.6784146]
[1742455037474,4e-05,85973.0,85972.0,1.6794146]
[1742455037657,4e-05,85973.0,85972.0,1.6814146]
[1742455038063,0.06514,85973.0,85972.0,1.6814146]
[1742455038658,0.1814532,85973.0,85972.0,1.6814146]
[1742455039459,0.06514,85973.0,85972.0,1.6814146]
[1742455040476,0.1814532,85973.0,85972.0,0.1814146]
[1742455040666,0.1814532,85973.0,85972.0,0.003]
[1742455040667,0.5422532,85973.0,85972.0,0.003]
[1742455041876,0.55182001,85973.0,85972.0,0.003]
[1742455043671,0.56139775,85973.0,85972.0,0.003]
[1742455043869,0.57860122,85973.0,85965.0,0.0581615]
[1742455044063,0.4771227,85966.0,85965.0,0.1744855]
[1742455044264,0.59882044,85966.0,85965.0,0.1744855]
[1742455044670,0.60838725,85966.0,85965.0,0.1744855]
[1742455044872,0.67068725,85966.0,85965.0,0.1744855]
[1742455045170,0.67068725,85966.0,85965.0,0.1774855]
[1742455045371,0.67068725,85966.0,85965.0,0.1814855]
[1742455045572,0.77068725,85966.0,85965.0,0.1814855]
[1742455045767,0.76110951,85966.0,85965.0,0.007]
[1742455046070,0.1123335,85958.0,85956.0,0.00017443]
[1742455046274,0.1163349,85957.0,85956.0,0.00017443]
[1742455046472,0.1798349,85957.0,85956.0,0.00017443]
[1742455046868,0.1768349,85957.0,85956.0,0.00017443]
[1742455047173,0.1163484,85947.0,85946.0,0.32564506]
[1742455047472,0.1113484,85947.0,85946.0,0.34250372]
[1742455047775,0.13046919,85947.0,85946.0,0.34250372]
[1742455047976,0.13046919,85947.0,85946.0,0.37430372]
[1742455048279,0.19346919,85947.0,85946.0,0.37430372]
[1742455048472,0.19346678,85947.0,85946.0,0.40680372]
[1742455048673,0.19346678,85947.0,85946.0,0.41280372]
[1742455049070,0.19446678,85947.0,85946.0,0.41280372]
[1742455050276,0.19446678,85947.0,85946.0,0.42151325]
[1742455050668,0.19446678,85947.0,85946.0,0.21221799]
[1742455050669,0.18491521,85947.0,85946.0,0.21221799]
[1742455052577,0.18491521,85947.0,85946.0,1.71221799]
[1742455055077,0.07356681,85947.0,85946.0,1.71221799]
[1742455056678,0.18991521,85947.0,85946.0,1.71221799]
[1742455057385,0.07356681,85947.0,85946.0,1.71221799]
[1742455058587,0.11212,85958.0,85953.0,0.0581696]
[1742455058772,0.0327,85957.0,85956.0,0.1163362]
[1742455058984,0.1791349,85957.0,85956.0,0.1163362]
[1742455062275,0.1801349,85957.0,85956.0,0.1163362]
[1742455070988,0.1801349,85957.0,85956.0,0.1480362]
[1742455071191,0.00017443,85966.0,85960.0,0.1163308]
[1742455071490,0.00017443,85966.0,85965.0,0.116324]
[1742455072398,0.00017443,85966.0,85965.0,0.147224]
[1742455073392,0.00117443,85966.0,85965.0,0.147224]
[1742455073795,0.06437443,85966.0,85965.0,0.147224]
[1742455074189,0.06337443,85966.0,85965.0,0.147224]
[1742455074590,0.06337443,85966.0,85965.0,0.178024]
[1742455077509,0.06337443,85966.0,85965.0,0.116324]
[1742455077510,0.09337443,85966.0,85965.0,0.116324]
[1742455077688,0.1163254,85964.0,85963.0,0.1744882]
[1742455078203,0.1795254,85964.0,85963.0,0.1744882]
[1742455083897,0.0632,85964.0,85963.0,0.2051882]
[1742455084598,0.1795254,85964.0,85963.0,0.2051882]
[1742455085309,0.0632,85964.0,85963.0,0.2051882]
[1742455086003,0.0632,85964.0,85963.0,1.7051882]
[1742455087510,0.0632,85964.0,85963.0,0.2051882]
[1742455089809,0.1795254,85964.0,85963.0,0.2051882]
[1742455091422,0.0632,85964.0,85963.0,0.2051882]
[1742455091906,0.1795254,85964.0,85963.0,0.2051882]
[1742455092710,0.0632,85964.0,85963.0,0.2051882]
[1742455094705,0.1795254,85964.0,85963.0,0.2051882]
[1742455094901,0.0632,85964.0,85963.0,0.2051882]
[1742455097502,0.1795254,85964.0,85963.0,0.2051882]
[1742455098012,0.0632,85964.0,85963.0,0.2051882]
[1742455098905,0.1795254,85964.0,85963.0,0.2051882]
[1742455099710,0.0632,85964.0,85963.0,0.2051882]
[1742455103306,0.05,91250.0,85963.0,0.0888627]
[1742455103307,0.3608,85974.0,85963.0,0.0888627]
[1742455103608,0.3608,85974.0,85973.0,0.1163132]
[1742455103802,0.1744853,85967.0,85964.0,0.14502]
[1742455104037,0.0301,85966.0,85965.0,1.6488227]
[1742455107005,0.0936,85966.0,85965.0,1.6488227]
[1742455107613,0.0936,85966.0,85965.0,0.1488227]
[1742455108213,0.0936,85966.0,85965.0,1.6488227]
[1742455112024,0.2099227,85966.0,85965.0,1.6488227]
[1742455112424,0.5707227,85966.0,85965.0,1.6488227]
[1742455112615,0.1163294,85961.0,85960.0,0.38332779]
[1742455112815,0.1163294,85961.0,85960.0,0.290819]
[1742455113011,0.1799294,85961.0,85960.0,0.290819]
[1742455113418,0.1799294,85961.0,85960.0,0.323319]
[1742455114219,0.1809294,85961.0,85960.0,0.323319]
[1742455114725,0.1809294,85961.0,85960.0,0.355919]
[1742455115724,0.1809294,85961.0,85960.0,1.855919]
[1742455116726,0.1809294,85961.0,85960.0,0.355919]
[1742455116931,0.1163335,85958.0,85951.0,0.20886947]
[1742455117231,0.1163416,85952.0,85951.0,0.20886947]
[1742455117532,0.5089416,85952.0,85951.0,0.20886947]
[1742455117920,0.5089416,85952.0,85951.0,0.32521247]
[1742455118125,0.5693416,85952.0,85951.0,0.32521247]
[1742455118334,0.5375416,85952.0,85951.0,0.20886947]
[1742455118518,0.5693416,85952.0,85951.0,0.32521247]
[1742455118918,0.5693416,85952.0,85951.0,0.116343]
[1742455118919,0.5703416,85952.0,85951.0,0.116343]
[1742455119331,0.5385416,85952.0,85951.0,0.116343]
[1742455119929,0.1163484,85948.0,85947.0,0.1163459]
[1742455120120,0.2284684,85948.0,85947.0,0.1163459]
[1742455120320,0.1163484,85947.0,85946.0,0.30374907]
[1742455120632,0.1163484,85947.0,85946.0,0.42009887]
[1742455120633,0.1777484,85947.0,85946.0,0.42009887]
[1742455121220,0.1777484,85947.0,85946.0,0.45339887]
[1742455121421,0.1777484,85947.0,85946.0,0.30374907]
[1742455121622,0.1777484,85947.0,85946.0,0.42009887]
[1742455122627,0.2787484,85947.0,85946.0,0.14191799]
[1742455122826,0.2797484,85947.0,85946.0,0.02556819]
[1742455123034,0.2797484,85947.0,85946.0,0.1163498]
[1742455123232,0.2797484,85947.0,85946.0,0.12488238]
[1742455125034,0.1797484,85947.0,85946.0,0.00853258]
[1742455125337,0.1163525,85944.0,85943.0,0.11652773]
[1742455125543,0.4771525,85944.0,85943.0,0.1328193]
[1742455125722,0.4771525,85944.0,85943.0,0.016466]
[1742455126127,0.5096525,85944.0,85943.0,0.016466]
[1742455126526,0.5106525,85944.0,85943.0,0.016466]
[1742455126741,0.1745645,85930.0,85929.0,0.1163642]
[1742455126946,0.2327518,85930.0,85929.0,0.1163642]
[1742455127128,0.116375,85930.0,85929.0,0.1163642]
[1742455127643,0.116375,85930.0,85929.0,0.00894295]
[1742455127827,0.116375,85930.0,85929.0,0.1163728]
[1742455128138,0.148875,85930.0,85929.0,0.16402536]
[1742455128526,0.148875,85930.0,85929.0,0.19562536]
[1742455129144,0.149875,85930.0,85929.0,0.19562536]
[1742455132041,0.261995,85930.0,85929.0,0.19562536]
[1742455133928,0.260995,85930.0,85929.0,0.19562536]
[1742455134130,0.261995,85930.0,85929.0,0.19562536]
[1742455146936,0.27158368,85930.0,85929.0,0.19562536]